[Event "*** Titled Tuesday Blitz"]
[Site "Chess.com"]
[Date "2021.02.02"]
[Round "5"]
[White "Twitch_ElhamBlitz05"]
[Black "esapunov"]
[Result "0-1"]
[WhiteElo "2834"]
[BlackElo "2619"]
[TimeControl "180+1"]
[EndTime "11:00:16 PST"]
[Termination "esapunov won by resignation"]

1. e4 {[%clk 0:03:00.6]} 1... c5 {[%clk 0:02:59.5]} 2. Nf3 {[%clk 0:03:00.6]}
2... d6 {[%clk 0:02:59.8]} 3. d4 {[%clk 0:03:00.8]} 3... cxd4 {[%clk 0:03:00.1]}
4. Nxd4 {[%clk 0:03:01.7]} 4... Nf6 {[%clk 0:03:00.5]} 5. Nc3 {[%clk 0:03:02.2]}
5... Nc6 {[%clk 0:03:01.2]} 6. Bc4 {[%clk 0:03:02.4]} 6... e6 {[%clk 0:03:01.3]}
7. Bb3 {[%clk 0:03:02.7]} 7... Be7 {[%clk 0:03:01.2]} 8. Be3 {[%clk 0:02:58.1]}
8... O-O {[%clk 0:03:01]} 9. Qe2 {[%clk 0:02:53.2]} 9... a6 {[%clk 0:03:00.3]}
10. O-O-O {[%clk 0:02:52.2]} 10... Qc7 {[%clk 0:02:59.8]} 11. g4 {[%clk
0:02:49.9]} 11... Nd7 {[%clk 0:02:58.4]} 12. Nf5 {[%clk 0:02:44.3]} 12... Nc5
{[%clk 0:02:56.8]} 13. Rhg1 {[%clk 0:02:07.5]} 13... b5 {[%clk 0:02:16.7]} 14.
f4 {[%clk 0:01:51.6]} 14... b4 {[%clk 0:02:14.9]} 15. Nd5 {[%clk 0:01:50.8]}
15... Nxb3+ {[%clk 0:02:11.9]} 16. axb3 {[%clk 0:01:49.6]} 16... exd5 {[%clk
0:02:11.3]} 17. exd5 {[%clk 0:01:49.4]} 17... Bxf5 {[%clk 0:01:30.5]} 18. gxf5
{[%clk 0:01:41.8]} 18... Na5 {[%clk 0:01:30.2]} 19. Kb1 {[%clk 0:01:31.8]} 19...
Bf6 {[%clk 0:01:29]} 20. Bd4 {[%clk 0:01:31.4]} 20... Rfe8 {[%clk 0:01:02.8]}
21. Bxf6 {[%clk 0:01:22.4]} 21... Rxe2 {[%clk 0:01:01.8]} 22. Rxg7+ {[%clk
0:01:22.4]} 22... Kf8 {[%clk 0:00:57.4]} 23. Rc1 {[%clk 0:00:59.4]} 23... Rxh2
{[%clk 0:00:52.2]} 24. Ka2 {[%clk 0:00:40]} 24... Rh6 {[%clk 0:00:19.8]} 25. Bd4
{[%clk 0:00:23.8]} 25... Re8 {[%clk 0:00:19.6]} 26. f6 {[%clk 0:00:19.4]} 26...
Re4 {[%clk 0:00:19.4]} 27. Rcg1 {[%clk 0:00:17.6]} 27... Ke8 {[%clk 0:00:19.6]}
28. Rg8+ {[%clk 0:00:14.9]} 28... Kd7 {[%clk 0:00:19.7]} 29. R1g7 {[%clk
0:00:14.4]} 29... Re7 {[%clk 0:00:07.8]} 30. fxe7 {[%clk 0:00:05.6]} 30... Kxe7
{[%clk 0:00:07.9]} 31. Rg2 {[%clk 0:00:04.8]} 31... Nb7 {[%clk 0:00:03.8]} 32.
Re2+ {[%clk 0:00:04.3]} 32... Kd7 {[%clk 0:00:04.2]} 33. Rge8 {[%clk 0:00:04.9]}
33... Qd8 {[%clk 0:00:02.9]} 34. Rxd8+ {[%clk 0:00:05.4]} 34... Kxd8 {[%clk
0:00:03.3]} 35. Rg2 {[%clk 0:00:04.5]} 35... Nc5 {[%clk 0:00:02.8]} 36. Rg8+
{[%clk 0:00:04]} 36... Ke7 {[%clk 0:00:03.1]} 37. Ra8 {[%clk 0:00:04.6]} 37...
Rh4 {[%clk 0:00:03.2]} 38. Ra7+ {[%clk 0:00:04.2]} 38... Ke8 {[%clk 0:00:02.3]}
39. Ra8+ {[%clk 0:00:03.6]} 39... Ke7 {[%clk 0:00:02.6]} 40. Ra7+ {[%clk
0:00:04.5]} 40... Ke8 {[%clk 0:00:03]} 41. Be3 {[%clk 0:00:01.6]} 41... Rh3
{[%clk 0:00:03]} 42. Bxc5 {[%clk 0:00:02.1]} 42... dxc5 {[%clk 0:00:02.9]} 43.
Rxa6 {[%clk 0:00:02.8]} 43... Rh5 {[%clk 0:00:03.2]} 44. d6 {[%clk 0:00:02.5]}
44... Rd5 {[%clk 0:00:02.8]} 45. c3 {[%clk 0:00:02]} 45... h5 {[%clk 0:00:02.5]}
46. cxb4 {[%clk 0:00:01.6]} 46... cxb4 {[%clk 0:00:03]} 47. Ra8+ {[%clk
0:00:02.4]} 47... Kd7 {[%clk 0:00:03.2]} 48. Rh8 {[%clk 0:00:03.3]} 48... Kxd6
{[%clk 0:00:03.1]} 49. Kb1 {[%clk 0:00:04]} 49... Ke7 {[%clk 0:00:03.7]} 50. Rh6
{[%clk 0:00:03.9]} 50... Kf8 {[%clk 0:00:03.6]} 51. Kc2 {[%clk 0:00:02.4]} 51...
Kg7 {[%clk 0:00:04.2]} 52. Ra6 {[%clk 0:00:02.8]} 52... h4 {[%clk 0:00:04.5]}
53. Ra1 {[%clk 0:00:02.3]} 53... Rh5 {[%clk 0:00:05.1]} 54. Rg1+ {[%clk
0:00:02.2]} 54... Kf6 {[%clk 0:00:05.8]} 55. Kd3 {[%clk 0:00:02.9]} 55... h3
{[%clk 0:00:06.4]} 56. Ke4 {[%clk 0:00:02.1]} 56... h2 {[%clk 0:00:06.4]} 57.
Rh1 {[%clk 0:00:03]} 57... Rh3 {[%clk 0:00:06.8]} 58. f5 {[%clk 0:00:02.9]}
58... Kg5 {[%clk 0:00:07]} 59. Ke5 {[%clk 0:00:03.1]} 59... Kg4 {[%clk
0:00:06.8]} 60. Kf6 {[%clk 0:00:04]} 60... Kf4 {[%clk 0:00:07.2]} 61. Rf1+
{[%clk 0:00:03.1]} 61... Ke4 {[%clk 0:00:07.6]} 62. Kxf7 {[%clk 0:00:01.9]}
62... h1=Q {[%clk 0:00:07]} 63. Rxh1 {[%clk 0:00:02.6]} 63... Rxh1 {[%clk
0:00:07.6]} 64. f6 {[%clk 0:00:03.3]} 64... Rf1 {[%clk 0:00:08.3]} 65. Ke6
{[%clk 0:00:04]} 65... Kd3 {[%clk 0:00:08.9]} 66. Kd5 {[%clk 0:00:04.3]} 66...
Kc2 {[%clk 0:00:09.4]} 67. Kc4 {[%clk 0:00:05.2]} 67... Rf4+ {[%clk 0:00:09.5]}
68. Kb5 {[%clk 0:00:05.7]} 68... Kxb3 {[%clk 0:00:10.2]} 69. f7 {[%clk
0:00:06.6]} 69... Rxf7 {[%clk 0:00:10.4]} 0-1

[Event "*** Titled Tuesday Blitz"]
[Site "Chess.com"]
[Date "2021.02.02"]
[Round "5"]
[White "OhanyanEminChess"]
[Black "ural58"]
[Result "1/2-1/2"]
[WhiteElo "2642"]
[BlackElo "2477"]
[TimeControl "180+1"]
[EndTime "11:00:16 PST"]
[Termination "Game drawn by repetition"]

1. e4 {[%clk 0:03:00.9]} 1... d5 {[%clk 0:02:54]} 2. exd5 {[%clk 0:03:00.7]}
2... Qxd5 {[%clk 0:02:53.1]} 3. Nf3 {[%clk 0:02:59.6]} 3... Bg4 {[%clk
0:02:51.9]} 4. Be2 {[%clk 0:02:55.3]} 4... Nc6 {[%clk 0:02:51.5]} 5. h3 {[%clk
0:02:52.5]} 5... Bxf3 {[%clk 0:02:49.9]} 6. Bxf3 {[%clk 0:02:53.4]} 6... Qe6+
{[%clk 0:02:49.8]} 7. Qe2 {[%clk 0:02:53.7]} 7... Qxe2+ {[%clk 0:02:27.6]} 8.
Bxe2 {[%clk 0:02:54.6]} 8... O-O-O {[%clk 0:02:21.4]} 9. d3 {[%clk 0:02:51.7]}
9... g6 {[%clk 0:02:20.8]} 10. Nd2 {[%clk 0:02:50.2]} 10... Bg7 {[%clk
0:02:19.8]} 11. c3 {[%clk 0:02:49.4]} 11... e5 {[%clk 0:02:18.4]} 12. Nf3 {[%clk
0:02:42.2]} 12... h6 {[%clk 0:02:16]} 13. Be3 {[%clk 0:02:18.7]} 13... Nge7
{[%clk 0:02:15.6]} 14. O-O-O {[%clk 0:02:17.1]} 14... Nf5 {[%clk 0:02:12.7]} 15.
Bc5 {[%clk 0:02:00.1]} 15... b6 {[%clk 0:02:09.9]} 16. Ba3 {[%clk 0:01:49.1]}
16... Rhe8 {[%clk 0:01:58.6]} 17. Rhe1 {[%clk 0:01:40.5]} 17... a5 {[%clk
0:01:56.9]} 18. Nd2 {[%clk 0:01:39]} 18... Na7 {[%clk 0:01:43.6]} 19. Nc4 {[%clk
0:01:33.3]} 19... Nb5 {[%clk 0:01:41]} 20. Bf3 {[%clk 0:01:32.3]} 20... Nxa3
{[%clk 0:01:39.4]} 21. Nxa3 {[%clk 0:01:32.5]} 21... Nd6 {[%clk 0:01:37.9]} 22.
Bc6 {[%clk 0:01:27.3]} 22... Re7 {[%clk 0:01:37.8]} 23. Kc2 {[%clk 0:01:26.7]}
23... f5 {[%clk 0:01:37.4]} 24. Nb5 {[%clk 0:01:20.7]} 24... Nxb5 {[%clk
0:01:37.2]} 25. Bxb5 {[%clk 0:01:21.6]} 25... Kb7 {[%clk 0:01:37.4]} 26. a4
{[%clk 0:01:15.9]} 26... c6 {[%clk 0:01:37.3]} 27. Bc4 {[%clk 0:01:14.2]} 27...
h5 {[%clk 0:01:28.3]} 28. Re2 {[%clk 0:01:01.5]} 28... Kc7 {[%clk 0:01:27.6]}
29. Rde1 {[%clk 0:01:00.6]} 29... Red7 {[%clk 0:01:22.1]} 30. f3 {[%clk
0:00:51]} 30... Bf6 {[%clk 0:01:20.3]} 31. Rxe5 {[%clk 0:00:47.3]} 31... Bxe5
{[%clk 0:01:20]} 32. Rxe5 {[%clk 0:00:48.2]} 32... Rd6 {[%clk 0:01:16.3]} 33. d4
{[%clk 0:00:47.6]} 33... Kd7 {[%clk 0:01:11.6]} 34. f4 {[%clk 0:00:47.3]} 34...
Re8 {[%clk 0:01:07.5]} 35. h4 {[%clk 0:00:46.5]} 35... Re7 {[%clk 0:01:01.4]}
36. Kd3 {[%clk 0:00:40.6]} 36... Rf6 {[%clk 0:00:58.6]} 37. Ke3 {[%clk
0:00:37.1]} 37... Rf8 {[%clk 0:00:42.9]} 38. Kf3 {[%clk 0:00:29.5]} 38... Rb8
{[%clk 0:00:40.9]} 39. Bd3 {[%clk 0:00:25.4]} 39... Kd6 {[%clk 0:00:39.1]} 40.
Ke3 {[%clk 0:00:14.7]} 40... c5 {[%clk 0:00:38.6]} 41. Bb5 {[%clk 0:00:10.7]}
41... cxd4+ {[%clk 0:00:37.8]} 42. cxd4 {[%clk 0:00:08.4]} 42... Rc8 {[%clk
0:00:34.2]} 43. Kd2 {[%clk 0:00:04.8]} 43... Rxe5 {[%clk 0:00:22.3]} 44. fxe5+
{[%clk 0:00:05.7]} 44... Kd5 {[%clk 0:00:22.6]} 45. Ke3 {[%clk 0:00:06.6]} 45...
Rc2 {[%clk 0:00:19.6]} 46. g3 {[%clk 0:00:07.2]} 46... Rxb2 {[%clk 0:00:18.6]}
47. Be8 {[%clk 0:00:07.8]} 47... Rb3+ {[%clk 0:00:17.5]} 48. Kf4 {[%clk
0:00:08.5]} 48... Kxd4 {[%clk 0:00:17.8]} 49. Bxg6 {[%clk 0:00:07.2]} 49... Re3
{[%clk 0:00:17.5]} 50. Bxh5 {[%clk 0:00:07.3]} 50... Rxe5 {[%clk 0:00:17.7]} 51.
Bf7 {[%clk 0:00:04.8]} 51... Re7 {[%clk 0:00:13.1]} 52. Bg6 {[%clk 0:00:02.5]}
52... b5 {[%clk 0:00:12.2]} 53. axb5 {[%clk 0:00:03.4]} 53... a4 {[%clk
0:00:12.5]} 54. Bxf5 {[%clk 0:00:02.7]} 54... a3 {[%clk 0:00:12.8]} 55. Bb1
{[%clk 0:00:03.3]} 55... Re1 {[%clk 0:00:12.9]} 56. Ba2 {[%clk 0:00:03.9]} 56...
Re2 {[%clk 0:00:13.2]} 57. Bg8 {[%clk 0:00:03.5]} 57... a2 {[%clk 0:00:12.9]}
58. Bxa2 {[%clk 0:00:03.5]} 58... Rxa2 {[%clk 0:00:13.5]} 59. h5 {[%clk
0:00:04.2]} 59... Kd5 {[%clk 0:00:12.3]} 60. Kf5 {[%clk 0:00:02.7]} 60... Kd6
{[%clk 0:00:12.7]} 61. Kf6 {[%clk 0:00:02.3]} 61... Rg2 {[%clk 0:00:11.9]} 62.
h6 {[%clk 0:00:02.2]} 62... Rxg3 {[%clk 0:00:12.2]} 63. h7 {[%clk 0:00:02.7]}
63... Rh3 {[%clk 0:00:12.1]} 64. Kg7 {[%clk 0:00:03.3]} 64... Rg3+ {[%clk
0:00:12.1]} 65. Kf7 {[%clk 0:00:03]} 65... Rh3 {[%clk 0:00:11.9]} 66. Kg7 {[%clk
0:00:02.9]} 66... Rg3+ {[%clk 0:00:12]} 67. Kf7 {[%clk 0:00:02.5]} 67... Rh3
{[%clk 0:00:11.7]} 68. Kg7 {[%clk 0:00:02]} 1/2-1/2

[Event "*** Titled Tuesday Blitz"]
[Site "Chess.com"]
[Date "2021.02.02"]
[Round "5"]
[White "MaxLeto"]
[Black "MoreChessJulia"]
[Result "0-1"]
[WhiteElo "2324"]
[BlackElo "2166"]
[TimeControl "180+1"]
[EndTime "11:00:16 PST"]
[Termination "MoreChessJulia won by checkmate"]

1. g4 {[%clk 0:02:29.6]} 1... g6 {[%clk 0:02:57.4]} 2. Bg2 {[%clk 0:02:28.4]}
2... h5 {[%clk 0:02:55.5]} 3. gxh5 {[%clk 0:02:25.9]} 3... Rxh5 {[%clk
0:02:54.7]} 4. d4 {[%clk 0:02:26.2]} 4... d6 {[%clk 0:02:53.4]} 5. Nc3 {[%clk
0:02:24.2]} 5... c6 {[%clk 0:02:53.1]} 6. e4 {[%clk 0:02:22.2]} 6... Nd7 {[%clk
0:02:50.7]} 7. Nge2 {[%clk 0:02:22]} 7... e5 {[%clk 0:02:50.3]} 8. Be3 {[%clk
0:02:20.1]} 8... Ngf6 {[%clk 0:02:45.6]} 9. Ng3 {[%clk 0:02:07.4]} 9... Rh7
{[%clk 0:02:44.3]} 10. Qe2 {[%clk 0:02:04.9]} 10... b5 {[%clk 0:02:42.6]} 11. f4
{[%clk 0:01:40.8]} 11... b4 {[%clk 0:02:38.8]} 12. Nd1 {[%clk 0:01:36.6]} 12...
Qa5 {[%clk 0:02:38.1]} 13. Nf2 {[%clk 0:01:23]} 13... Ba6 {[%clk 0:02:36.9]} 14.
Nd3 {[%clk 0:01:23]} 14... b3+ {[%clk 0:02:35]} 15. Bd2 {[%clk 0:01:08.4]} 15...
Qb6 {[%clk 0:02:23.2]} 16. dxe5 {[%clk 0:01:05.4]} 16... dxe5 {[%clk 0:02:17.4]}
17. axb3 {[%clk 0:01:04.7]} 17... exf4 {[%clk 0:02:11.8]} 18. Bxf4 {[%clk
0:01:05.6]} 18... O-O-O {[%clk 0:02:10.6]} 19. O-O-O {[%clk 0:00:51.9]} 19...
Nc5 {[%clk 0:02:07.3]} 20. Be3 {[%clk 0:00:41.2]} 20... Bxd3 {[%clk 0:02:01.9]}
21. cxd3 {[%clk 0:00:07.7]} 21... Qxb3 {[%clk 0:01:56.8]} 22. Bxc5 {[%clk
0:00:03.1]} 22... Bxc5 {[%clk 0:01:55.9]} 23. Qc2 {[%clk 0:00:03.6]} 23... Be3+
{[%clk 0:01:48.8]} 24. Kb1 {[%clk 0:00:03.8]} 24... Qxc2+ {[%clk 0:01:47.1]} 25.
Kxc2 {[%clk 0:00:04.7]} 25... Rdh8 {[%clk 0:01:41.7]} 26. h3 {[%clk 0:00:04.3]}
26... Bd4 {[%clk 0:01:38]} 27. Ne2 {[%clk 0:00:04.4]} 27... Be5 {[%clk
0:01:35.5]} 28. d4 {[%clk 0:00:04.8]} 28... Bc7 {[%clk 0:01:34.4]} 29. Ra1
{[%clk 0:00:04.7]} 29... Bb6 {[%clk 0:01:32.9]} 30. Kd3 {[%clk 0:00:03.6]} 30...
Rd8 {[%clk 0:01:28.7]} 31. Rhc1 {[%clk 0:00:03.6]} 31... Kb7 {[%clk 0:01:26.9]}
32. Rc4 {[%clk 0:00:03.6]} 32... Rhh8 {[%clk 0:00:51.7]} 33. Rf1 {[%clk
0:00:04.2]} 33... Nd7 {[%clk 0:00:42.9]} 34. Rxf7 {[%clk 0:00:04.6]} 34... Rhf8
{[%clk 0:00:38.4]} 35. Rxf8 {[%clk 0:00:04.2]} 35... Nxf8 {[%clk 0:00:25.9]} 36.
e5 {[%clk 0:00:04.6]} 36... Nd7 {[%clk 0:00:23.5]} 37. Bxc6+ {[%clk 0:00:04]}
37... Kb8 {[%clk 0:00:23.3]} 38. Nc3 {[%clk 0:00:04.3]} 38... Nxe5+ {[%clk
0:00:22.8]} 39. Kc2 {[%clk 0:00:03.8]} 39... Nxc4 {[%clk 0:00:22.7]} 40. d5
{[%clk 0:00:04.4]} 40... Ne5 {[%clk 0:00:21.5]} 41. Ne4 {[%clk 0:00:04.4]} 41...
Nxc6 {[%clk 0:00:20.1]} 42. dxc6 {[%clk 0:00:04.5]} 42... Kc7 {[%clk 0:00:20.7]}
43. Ng5 {[%clk 0:00:03.5]} 43... Kxc6 {[%clk 0:00:20.3]} 44. Nf7 {[%clk
0:00:03.6]} 44... Rf8 {[%clk 0:00:19.1]} 45. Ne5+ {[%clk 0:00:03.7]} 45... Kd5
{[%clk 0:00:18.9]} 46. Nxg6 {[%clk 0:00:03.8]} 46... Rf2+ {[%clk 0:00:18.2]} 47.
Kc3 {[%clk 0:00:03.6]} 47... Bd4+ {[%clk 0:00:17.5]} 48. Kd3 {[%clk 0:00:04.1]}
48... Bxb2 {[%clk 0:00:14.6]} 49. h4 {[%clk 0:00:03.3]} 49... Rh2 {[%clk
0:00:12.8]} 50. Ke3 {[%clk 0:00:01.6]} 50... Bf6 {[%clk 0:00:11.4]} 51. Kd3
{[%clk 0:00:01.7]} 51... Bxh4 {[%clk 0:00:10.8]} 52. Nf4+ {[%clk 0:00:02.3]}
52... Kc6 {[%clk 0:00:09.3]} 53. Ne2 {[%clk 0:00:02.6]} 53... Rxe2 {[%clk
0:00:08]} 54. Kxe2 {[%clk 0:00:03.2]} 54... a5 {[%clk 0:00:08.6]} 55. Kd3 {[%clk
0:00:03.9]} 55... Kb5 {[%clk 0:00:09.1]} 56. Kc2 {[%clk 0:00:04.2]} 56... a4
{[%clk 0:00:09.6]} 57. Kb1 {[%clk 0:00:05.1]} 57... Kb4 {[%clk 0:00:09.6]} 58.
Ka2 {[%clk 0:00:06]} 58... a3 {[%clk 0:00:09.6]} 59. Ka1 {[%clk 0:00:06.5]}
59... Kb3 {[%clk 0:00:10]} 60. Kb1 {[%clk 0:00:06.9]} 60... Be7 {[%clk
0:00:08.9]} 61. Kc1 {[%clk 0:00:06.7]} 61... a2 {[%clk 0:00:08.3]} 62. Kd2
{[%clk 0:00:07.6]} 62... a1=Q {[%clk 0:00:08.5]} 63. Ke2 {[%clk 0:00:08.5]}
63... Qc3 {[%clk 0:00:08.5]} 64. Kf2 {[%clk 0:00:08.6]} 64... Bc5+ {[%clk
0:00:08.5]} 65. Ke2 {[%clk 0:00:09.5]} 65... Bd4 {[%clk 0:00:08.5]} 66. Kf1
{[%clk 0:00:09.3]} 66... Qc2 {[%clk 0:00:07]} 67. Ke1 {[%clk 0:00:09]} 67... Be3
{[%clk 0:00:06.8]} 68. Kf1 {[%clk 0:00:09.3]} 68... Qf2# {[%clk 0:00:07.3]} 0-1

[Event "*** Titled Tuesday Blitz"]
[Site "Chess.com"]
[Date "2021.02.02"]
[Round "5"]
[White "Walter_White_Poland"]
[Black "xberli"]
[Result "1/2-1/2"]
[WhiteElo "2306"]
[BlackElo "2492"]
[TimeControl "180+1"]
[EndTime "11:00:17 PST"]
[Termination "Game drawn - insufficient material"]

1. e4 {[%clk 0:03:00.9]} 1... e5 {[%clk 0:02:56.1]} 2. Nf3 {[%clk 0:02:54.1]}
2... Nc6 {[%clk 0:02:55.4]} 3. Bb5 {[%clk 0:02:51]} 3... Nf6 {[%clk 0:02:52.9]}
4. O-O {[%clk 0:02:49.6]} 4... Bc5 {[%clk 0:02:51]} 5. Nxe5 {[%clk 0:02:42.5]}
5... O-O {[%clk 0:02:38.8]} 6. Bxc6 {[%clk 0:02:40.3]} 6... dxc6 {[%clk
0:02:39.7]} 7. d3 {[%clk 0:02:36.6]} 7... Re8 {[%clk 0:02:37.2]} 8. Nf3 {[%clk
0:02:22.4]} 8... a5 {[%clk 0:02:32.3]} 9. Be3 {[%clk 0:02:16.6]} 9... Bd6 {[%clk
0:02:26.4]} 10. h3 {[%clk 0:01:59]} 10... a4 {[%clk 0:02:24.4]} 11. a3 {[%clk
0:01:54.5]} 11... c5 {[%clk 0:02:22.1]} 12. Nc3 {[%clk 0:01:43.7]} 12... c6
{[%clk 0:02:15.5]} 13. Re1 {[%clk 0:01:39.3]} 13... Qc7 {[%clk 0:02:06.7]} 14.
Qd2 {[%clk 0:01:25.9]} 14... b5 {[%clk 0:02:01.4]} 15. e5 {[%clk 0:01:17.1]}
15... Bxe5 {[%clk 0:01:58.4]} 16. Bxc5 {[%clk 0:00:32.4]} 16... Bf4 {[%clk
0:01:45.5]} 17. Rxe8+ {[%clk 0:00:30.8]} 17... Nxe8 {[%clk 0:01:46.4]} 18. Re1
{[%clk 0:00:21.7]} 18... Bxh3 {[%clk 0:01:33.2]} 19. Qe2 {[%clk 0:00:22]} 19...
Bd7 {[%clk 0:01:28.4]} 20. Qe7 {[%clk 0:00:20.4]} 20... Bd6 {[%clk 0:01:13.8]}
21. Bxd6 {[%clk 0:00:18.4]} 21... Qxd6 {[%clk 0:01:14.7]} 22. Ng5 {[%clk
0:00:12.2]} 22... Qxe7 {[%clk 0:00:35.7]} 23. Rxe7 {[%clk 0:00:13.1]} 23... Nf6
{[%clk 0:00:19.8]} 24. Nce4 {[%clk 0:00:09.6]} 24... Nxe4 {[%clk 0:00:14.1]} 25.
Nxe4 {[%clk 0:00:09.4]} 25... Be6 {[%clk 0:00:13.8]} 26. Nc5 {[%clk 0:00:09.2]}
26... Bd5 {[%clk 0:00:13.6]} 27. f4 {[%clk 0:00:08]} 27... g6 {[%clk 0:00:13.4]}
28. d4 {[%clk 0:00:06.9]} 28... Kf8 {[%clk 0:00:13.1]} 29. Re5 {[%clk
0:00:05.9]} 29... Rd8 {[%clk 0:00:13.1]} 30. c3 {[%clk 0:00:05.4]} 30... h5
{[%clk 0:00:12.7]} 31. Kf2 {[%clk 0:00:05.6]} 31... Kg7 {[%clk 0:00:13]} 32. g3
{[%clk 0:00:06]} 32... Kf6 {[%clk 0:00:13.2]} 33. Ke3 {[%clk 0:00:06.1]} 33...
Be6 {[%clk 0:00:13]} 34. Ke4 {[%clk 0:00:05.2]} 34... Bf5+ {[%clk 0:00:13]} 35.
Ke3 {[%clk 0:00:05]} 35... Be6 {[%clk 0:00:13.1]} 36. Nxe6 {[%clk 0:00:04.7]}
36... fxe6 {[%clk 0:00:14]} 37. Rc5 {[%clk 0:00:05.2]} 37... Rd6 {[%clk
0:00:13.1]} 38. Ke4 {[%clk 0:00:05.4]} 38... Ke7 {[%clk 0:00:12.8]} 39. Rg5
{[%clk 0:00:05.5]} 39... Kf7 {[%clk 0:00:12.7]} 40. Rc5 {[%clk 0:00:05.5]} 40...
Kf6 {[%clk 0:00:12.3]} 41. Re5 {[%clk 0:00:05.2]} 41... Rd5 {[%clk 0:00:12.2]}
42. Rxd5 {[%clk 0:00:04.7]} 42... exd5+ {[%clk 0:00:11.7]} 43. Ke3 {[%clk
0:00:04.1]} 43... Ke6 {[%clk 0:00:11.8]} 44. Ke2 {[%clk 0:00:03.9]} 44... Kd6
{[%clk 0:00:11.7]} 45. Ke3 {[%clk 0:00:04.3]} 45... c5 {[%clk 0:00:12]} 46.
dxc5+ {[%clk 0:00:04.2]} 46... Kxc5 {[%clk 0:00:12.9]} 47. Kd3 {[%clk
0:00:04.1]} 47... Kc6 {[%clk 0:00:12.3]} 48. Ke3 {[%clk 0:00:04]} 48... Kd7
{[%clk 0:00:11.4]} 49. Kd4 {[%clk 0:00:03.7]} 49... Kd6 {[%clk 0:00:11.5]} 50.
Ke3 {[%clk 0:00:04]} 50... Kc6 {[%clk 0:00:10.6]} 51. Kd3 {[%clk 0:00:04.1]}
51... Kc5 {[%clk 0:00:10.2]} 52. Kd2 {[%clk 0:00:03.3]} 52... Kc4 {[%clk
0:00:09.9]} 53. Kc2 {[%clk 0:00:03.1]} 53... d4 {[%clk 0:00:10.3]} 54. cxd4
{[%clk 0:00:03.4]} 54... Kxd4 {[%clk 0:00:11.2]} 55. Kd2 {[%clk 0:00:03.9]}
55... Ke4 {[%clk 0:00:10]} 56. Kc3 {[%clk 0:00:03.9]} 56... Kf3 {[%clk
0:00:07.4]} 57. Kb4 {[%clk 0:00:04.8]} 57... Kxg3 {[%clk 0:00:07.7]} 58. Kxb5
{[%clk 0:00:05.7]} 58... h4 {[%clk 0:00:08.2]} 59. Kxa4 {[%clk 0:00:06.6]} 59...
h3 {[%clk 0:00:08.7]} 60. b4 {[%clk 0:00:07.5]} 60... h2 {[%clk 0:00:09.1]} 61.
b5 {[%clk 0:00:08.4]} 61... h1=Q {[%clk 0:00:09.5]} 62. b6 {[%clk 0:00:09.3]}
62... Qb7 {[%clk 0:00:09.6]} 63. Kb5 {[%clk 0:00:10.2]} 63... Kxf4 {[%clk
0:00:09.7]} 64. a4 {[%clk 0:00:11.1]} 64... g5 {[%clk 0:00:10.2]} 65. a5 {[%clk
0:00:12]} 65... Qd5+ {[%clk 0:00:10.3]} 66. Ka6 {[%clk 0:00:11.8]} 66... Qc4+
{[%clk 0:00:10.1]} 67. Ka7 {[%clk 0:00:11.8]} 67... Qb5 {[%clk 0:00:09.7]} 68.
a6 {[%clk 0:00:11.7]} 68... g4 {[%clk 0:00:09.9]} 69. b7 {[%clk 0:00:11.9]}
69... g3 {[%clk 0:00:09.3]} 70. b8=Q+ {[%clk 0:00:11.7]} 70... Qxb8+ {[%clk
0:00:09.7]} 71. Kxb8 {[%clk 0:00:12.6]} 71... g2 {[%clk 0:00:10.2]} 72. a7
{[%clk 0:00:13.1]} 72... g1=Q {[%clk 0:00:10.7]} 73. a8=Q {[%clk 0:00:12.7]}
73... Qb6+ {[%clk 0:00:11.1]} 74. Qb7 {[%clk 0:00:12.7]} 74... Qd8+ {[%clk
0:00:11.3]} 75. Qc8 {[%clk 0:00:12.8]} 75... Qb6+ {[%clk 0:00:11.2]} 76. Qb7
{[%clk 0:00:13]} 76... Qxb7+ {[%clk 0:00:11.4]} 77. Kxb7 {[%clk 0:00:12.9]}
1/2-1/2